bitfinex-derivatives/quotes_BNBF0:USTF0_20250524
["timestamp","ask_amount","ask_price","bid_price","bid_amount"]
[1748118981559,1.07660522,674.76,674.49,0.6563686]
[1748118981758,1.07660522,674.75,674.49,0.6563686]
[1748118981963,1.07660522,674.74,674.49,0.6563686]
[1748118982258,1.07660522,674.73,674.49,0.6563686]
[1748118982462,1.07660522,674.72,674.49,0.6563686]
[1748118982664,1.07660522,674.71,674.5,0.6563686]
[1748118982864,1.07660522,674.7,674.5,0.6563686]
[1748118983064,1.07660522,674.69,674.5,0.6563686]
[1748118983264,1.07660522,674.68,674.5,0.6563686]
[1748118983465,1.07660522,674.67,674.5,0.6563686]
[1748118983665,1.07660522,674.66,674.5,0.6563686]
[1748118983866,0.29633141,674.92,674.5,0.6563686]
[1748118984166,1.07695239,674.91,674.51,0.6563686]
[1748118984366,1.07695239,674.9,674.51,0.6563686]
[1748118984559,1.07695239,674.89,674.51,0.6563686]
[1748118984761,1.07695239,674.88,674.51,0.6563686]
[1748118985062,0.29633141,674.92,674.52,0.6563686]
[1748118985260,1.0771291,674.91,674.52,0.6563686]
[1748118985466,1.0771291,674.9,674.52,0.6563686]
[1748118985665,1.0771291,674.89,674.52,0.6563686]
[1748118985865,1.0771291,674.88,674.52,0.6563686]
[1748118986058,1.0771291,674.87,674.52,0.6563686]
[1748118986263,1.0771291,674.86,674.52,0.6563686]
[1748118986464,1.0771291,674.85,674.53,0.6563686]
[1748118986661,1.0771291,674.84,674.53,0.6563686]
[1748118986863,1.0771291,674.83,674.53,0.6563686]
[1748118987062,1.0771291,674.82,674.53,0.6563686]
[1748118987265,1.0771291,674.81,674.53,0.6563686]
[1748118987465,1.0771291,674.8,674.53,0.6563686]
[1748118987666,1.0771291,674.79,674.53,0.6563686]
[1748118987864,1.0771291,674.78,674.53,0.6563686]
[1748118988067,1.0771291,674.77,674.54,0.6563686]
[1748118988270,1.0771291,674.76,674.54,0.6563686]
[1748118988468,1.0771291,674.75,674.54,0.6563686]
[1748118988671,1.0771291,674.74,674.54,0.6563686]
[1748118988973,1.07761602,674.73,674.55,0.6563686]
[1748118989169,1.07761602,674.72,674.55,0.6563686]
[1748118989371,1.07761602,674.71,674.55,0.6563686]
[1748118989569,1.07761602,674.7,674.55,0.6563686]
[1748118989770,1.07761602,674.69,674.55,0.6563686]
[1748118989972,1.07761602,674.68,674.55,0.6563686]
[1748118990173,1.07761602,674.67,674.56,0.6563686]
[1748118990373,1.07761602,674.66,674.56,0.6563686]
[1748118990574,1.07761602,674.65,674.56,0.6563686]
[1748118990869,1.07761602,674.64,674.56,0.6563686]
[1748118991074,1.07761602,674.63,674.57,0.6563686]
[1748118991272,1.0780709,674.62,674.57,0.6563686]
[1748118991470,0.29633141,674.92,674.57,0.6563686]
[1748118991672,1.07808227,674.91,674.57,0.6563686]
[1748118991972,1.07808227,674.9,674.57,0.6563686]
[1748118992170,1.07808227,674.89,674.57,0.6563686]
[1748118992368,1.07808227,674.88,674.58,0.6563686]
[1748118992573,1.07808227,674.87,674.58,0.6563686]
[1748118992774,1.07817996,674.86,674.58,0.6563686]
[1748118993070,1.07817996,674.85,674.58,0.6563686]
[1748118993274,1.07817996,674.84,674.58,0.6563686]
[1748118993575,1.07817996,674.83,674.59,0.6563686]
[1748118993874,1.07817996,674.82,674.59,0.6563686]
[1748118994075,1.07817996,674.81,674.59,0.6563686]
[1748118994269,1.07817996,674.8,674.59,0.6563686]
[1748118994473,1.07817996,674.79,674.6,0.6563686]
[1748118994675,1.07860083,674.78,674.6,0.6563686]
[1748118994973,1.07860083,674.77,674.6,0.6563686]
[1748118995171,1.07860083,674.76,674.6,0.6563686]
[1748118995373,1.07860083,674.75,674.6,0.6563686]
[1748118995574,1.07860083,674.74,674.61,0.6563686]
[1748118995770,1.07860083,674.73,674.61,0.6563686]
[1748118995973,1.07860083,674.72,674.61,0.6563686]
[1748118996172,1.07860083,674.71,674.61,0.6563686]
[1748118996373,1.07860083,674.7,674.61,0.6563686]
[1748118996575,1.07887269,674.69,674.61,0.6563686]
[1748118996776,1.07887269,674.68,674.62,0.6563686]
[1748118996977,1.07887269,674.67,674.62,0.6563686]
[1748118997177,1.07887269,674.66,674.62,0.6563686]
[1748118997379,1.07887269,674.65,674.62,0.6563686]
[1748118997576,1.07887269,674.64,674.62,0.6563686]
[1748118997776,1.07887269,674.63,674.62,0.6563686]
[1748118997972,1.07887269,674.63,674.47,0.69551471]
[1748118998176,0.29633141,674.92,674.47,0.69551471]
[1748118998375,1.07899648,674.91,674.47,0.69551471]
[1748118998572,1.07899648,674.9,674.47,0.69551471]
[1748118998776,1.07899648,674.89,674.48,0.65861618]
[1748118998976,1.07899648,674.88,674.48,0.65861618]
[1748118999179,1.07899648,674.87,674.48,0.65861618]
[1748118999380,1.07899648,674.86,674.48,0.65861618]
[1748118999681,1.07899648,674.85,674.48,0.65861618]
[1748118999979,1.07899648,674.84,674.48,0.65861618]
[1748119000279,1.07905064,674.83,674.5,0.69551471]
[1748119000478,1.07905064,674.82,674.5,0.69551471]
[1748119000680,1.07905064,674.81,674.5,0.69551471]
[1748119000873,1.07905064,674.8,674.5,0.69551471]
[1748119001074,1.07905064,674.79,674.5,0.69551471]
[1748119001273,1.07905064,674.78,674.51,0.65861618]
[1748119001577,1.07905064,674.77,674.51,0.65861618]
[1748119001777,1.07905064,674.76,674.51,0.65861618]
[1748119002074,1.07905064,674.75,674.52,0.65861618]
[1748119002274,1.07912496,674.74,674.52,0.65861618]
[1748119002578,1.07912496,674.73,674.52,0.65861618]
[1748119002876,1.07912496,674.72,674.52,0.65861618]
[1748119003074,1.07912496,674.71,674.52,0.65861618]
[1748119003279,1.07912496,674.7,674.53,0.65861618]
[1748119003480,1.07912496,674.69,674.53,0.65861618]
[1748119003681,1.07912496,674.68,674.53,0.65861618]
[1748119003882,1.07912496,674.67,674.53,0.65861618]
[1748119004075,1.07925805,674.66,674.53,0.65861618]
[1748119004280,1.07925805,674.65,674.53,0.65861618]
[1748119004480,1.07925805,674.64,674.54,0.65861618]
[1748119004779,1.07925805,674.63,674.54,0.65861618]
[1748119004981,1.07925805,674.62,674.54,0.65861618]
[1748119005176,1.07925805,674.61,674.54,0.65861618]
[1748119005378,0.29633141,674.92,674.55,0.65861618]
[1748119005582,1.07933115,674.91,674.55,0.65861618]
[1748119005778,1.07933115,674.9,674.55,0.65861618]
[1748119005978,1.07933322,674.89,674.55,0.65861618]
[1748119006181,1.07933322,674.88,674.55,0.65861618]
[1748119006379,1.07933322,674.87,674.55,0.65861618]
[1748119006583,1.07933322,674.86,674.55,0.65861618]
[1748119006885,1.07933322,674.85,674.56,0.65861618]
[1748119007083,1.07933322,674.84,674.56,0.65861618]
[1748119007284,1.07933322,674.83,674.56,0.65861618]
[1748119007478,1.07933322,674.82,674.56,0.65861618]
[1748119007682,1.07933322,674.81,674.56,0.65861618]
[1748119007882,1.07933429,674.8,674.56,0.65861618]
[1748119008079,1.07933429,674.79,674.56,0.65861618]
[1748119008286,1.07933429,674.78,674.57,0.65861618]
[1748119008585,1.07933429,674.77,674.57,0.65861618]
[1748119008784,1.07933429,674.76,674.57,0.65861618]
[1748119009078,1.07933429,674.75,674.57,0.65861618]
[1748119009280,1.07933429,674.74,674.57,0.65861618]
[1748119009480,1.07933429,674.73,674.57,0.65861618]
[1748119009680,1.07933429,674.72,674.58,0.65861618]
[1748119009884,1.07933429,674.71,674.58,0.65861618]
[1748119010086,1.07933429,674.7,674.58,0.65861618]
[1748119010385,1.07933429,674.69,674.58,0.65861618]
[1748119010685,1.07933429,674.68,674.59,0.65861618]
[1748119010882,1.07933429,674.67,674.59,0.65861618]
[1748119011086,1.07933429,674.66,674.59,0.65861618]
[1748119011286,1.07933429,674.65,674.59,0.65861618]
[1748119011486,1.07933429,674.64,674.59,0.65861618]
[1748119011686,1.07934095,674.63,674.59,0.65861618]
[1748119011984,1.07934095,674.62,674.59,0.65861618]
[1748119012187,1.07934095,674.61,674.59,0.65861618]
[1748119012383,0.29633141,674.92,674.6,0.65861618]
[1748119012588,1.07934317,674.91,674.6,0.65861618]
[1748119012783,1.07934317,674.9,674.6,0.65861618]
[1748119012986,1.07934317,674.89,674.61,0.65861618]
[1748119013187,1.07934317,674.88,674.61,0.65861618]
[1748119013388,1.07937319,674.87,674.61,0.65861618]
[1748119013683,1.07937319,674.86,674.61,0.65861618]
[1748119013887,1.07937319,674.85,674.61,0.65861618]
[1748119014088,1.07937319,674.84,674.61,0.65861618]
[1748119014288,1.07937319,674.83,674.62,0.65861618]
[1748119014490,1.07937319,674.82,674.62,0.65861618]
[1748119014684,1.07937319,674.81,674.62,0.65861618]
[1748119014887,1.07937319,674.8,674.62,0.65861618]
[1748119015086,1.07937319,674.79,674.62,0.65861618]
[1748119015289,1.07937319,674.78,674.63,0.65861618]
[1748119015584,1.07941471,674.77,674.63,0.65861618]
[1748119015788,1.07941471,674.76,674.63,0.65861618]
[1748119015990,1.07941471,674.75,674.63,0.65861618]
[1748119016189,1.07941471,674.74,674.63,0.65861618]
[1748119016390,1.07941471,674.73,674.63,0.65861618]
[1748119016587,1.07941471,674.72,674.64,0.65861618]
[1748119016786,1.07941471,674.71,674.64,0.65861618]
[1748119016991,1.07941471,674.7,674.64,0.65861618]
[1748119017186,1.07941471,674.69,674.64,0.65861618]
[1748119017390,1.07942414,674.68,674.65,0.65861618]
[1748119017690,1.07942414,674.67,674.65,0.65861618]
[1748119017891,1.07942414,674.66,674.65,0.65861618]
[1748119019291,1.07950074,674.66,674.65,0.65861618]
[1748119021197,1.0795499,674.66,674.65,0.65861618]
[1748119024996,1.07969679,674.66,674.65,0.65861618]
[1748119028705,1.08017883,674.66,674.65,0.65861618]
[1748119030604,1.08029495,674.66,674.65,0.65861618]
[1748119034409,1.08038543,674.66,674.65,0.65861618]
[1748119043919,1.0804351,674.66,674.65,0.65861618]
[1748119062736,1.08015486,674.66,674.65,0.65861618]
[1748119067732,1.07948305,674.66,674.65,0.65861618]
[1748119068436,1.07947084,674.66,674.65,0.65861618]
[1748119072239,1.0794549,674.66,674.65,0.65861618]
[1748119074139,1.07944136,674.66,674.65,0.65861618]
[1748119077536,1.0795482,674.66,674.65,0.65861618]
[1748119078039,1.07955063,674.66,674.65,0.65861618]
[1748119079941,1.07954984,674.66,674.65,0.65861618]
[1748119085545,1.07927986,674.66,674.65,0.65861618]
[1748119087448,1.07930003,674.66,674.65,0.65861618]
[1748119091251,1.07896374,674.66,674.65,0.65861618]
[1748119095257,1.07902054,674.66,674.65,0.65861618]
[1748119096852,0.29633141,674.92,674.65,0.65861618]
[1748119097058,1.07904193,674.91,674.65,0.65861618]
[1748119097260,1.07904193,674.9,674.65,0.65861618]
[1748119097458,1.07904193,674.89,674.65,0.65861618]
[1748119097658,1.07904193,674.88,674.65,0.65861618]
[1748119097953,1.07904193,674.87,674.65,0.65861618]
[1748119098158,1.07904193,674.86,674.66,0.65861618]
[1748119098358,1.07904193,674.85,674.66,0.65861618]
[1748119098559,1.07904193,674.84,674.66,0.65861618]
[1748119098757,1.07910829,674.83,674.66,0.65861618]
[1748119098952,1.07910829,674.82,674.67,0.65861618]
[1748119099155,1.07910829,674.81,674.67,0.65861618]
[1748119099359,1.07910829,674.8,674.67,0.65861618]
[1748119099654,1.07910829,674.79,674.67,0.65861618]
[1748119099959,1.07910829,674.78,674.68,0.65861618]
[1748119100153,1.07910829,674.77,674.68,0.65861618]
[1748119100357,1.07910829,674.76,674.68,0.65861618]
[1748119100556,1.07910829,674.75,674.68,0.65861618]
[1748119100755,1.0791798,674.74,674.68,0.65861618]
[1748119100955,1.0791798,674.73,674.69,0.65861618]
[1748119101259,1.0791798,674.72,674.69,0.65861618]
[1748119101458,1.0791798,674.71,674.69,0.65861618]
[1748119101754,1.0791798,674.7,674.69,0.65861618]
[1748119101959,1.0791798,674.7,674.65,0.664]
[1748119102156,1.0791798,674.69,674.65,0.664]
[1748119102359,1.0791798,674.68,674.65,0.664]
[1748119102556,1.0792605,674.67,674.65,0.664]
[1748119102756,1.0792605,674.66,674.65,0.664]
[1748119103256,1.0792605,674.66,674.65,1.32287175]
[1748119104458,1.07941898,674.66,674.65,1.32287175]
[1748119106364,1.07954658,674.66,674.65,1.32287175]
[1748119108267,1.07967319,674.66,674.65,1.32287175]
[1748119113876,0.29633141,674.92,674.65,1.32287175]
[1748119114076,1.07968577,674.91,674.65,1.32287175]
[1748119114375,1.07968577,674.9,674.65,1.32287175]
[1748119114574,1.07968577,674.89,674.65,1.32287175]
[1748119114775,1.07968577,674.88,674.65,1.32287175]
[1748119115074,1.07968577,674.87,674.65,1.32287175]
[1748119115274,1.07968577,674.86,674.66,0.65887175]
[1748119115469,1.07968577,674.85,674.66,0.65887175]
[1748119115673,1.07968577,674.84,674.66,0.65887175]
[1748119115968,1.07968577,674.83,674.66,0.65887175]
[1748119116173,1.07968577,674.82,674.66,0.65887175]
[1748119116372,1.07968577,674.81,674.66,0.65887175]
[1748119116570,1.07968577,674.8,674.66,0.65887175]
[1748119116769,1.07968577,674.79,674.67,0.65887175]
[1748119116968,1.07968577,674.78,674.67,0.65887175]
[1748119117171,1.07968577,674.77,674.67,0.65887175]
[1748119117371,1.07968577,674.76,674.67,0.65887175]
[1748119117670,0.29633141,674.92,674.67,0.65887175]
[1748119117870,1.07998331,674.91,674.68,0.65887175]
[1748119118077,1.07998331,674.9,674.68,0.65887175]
[1748119118271,1.07998331,674.89,674.68,0.65887175]
[1748119118471,1.07998331,674.88,674.68,0.65887175]
[1748119118671,1.07998331,674.87,674.68,0.65887175]
[1748119118971,1.07998331,674.86,674.68,0.65887175]
[1748119119171,1.07998331,674.85,674.68,0.65887175]
[1748119119369,1.07998331,674.84,674.69,0.65887175]
[1748119119573,1.07998331,674.83,674.69,0.65887175]
[1748119119772,1.07998331,674.82,674.69,0.65887175]
[1748119119973,1.07998331,674.81,674.7,0.65887175]
[1748119120171,1.07998331,674.8,674.7,0.65887175]
[1748119120372,1.07998331,674.79,674.7,0.65887175]
[1748119120574,1.07998331,674.78,674.7,0.65887175]
[1748119120775,1.07998331,674.77,674.7,0.65887175]
[1748119120974,1.07998331,674.76,674.7,0.65887175]
[1748119121171,1.07998331,674.75,674.7,0.65887175]
[1748119121372,1.07998331,674.74,674.71,0.65887175]
[1748119121675,1.07970927,674.73,674.71,0.65887175]
[1748119121873,0.29633141,674.92,674.71,0.65887175]
[1748119121874,1.07970927,674.72,674.71,0.65887175]
[1748119127179,1.07962146,674.72,674.71,0.65887175]
[1748119129083,1.07886988,674.72,674.71,0.65887175]
[1748119130988,1.07864201,674.72,674.71,0.65887175]
[1748119132790,0.29633141,674.92,674.71,0.65887175]
[1748119132990,1.07851074,674.91,674.71,0.65887175]
[1748119133191,1.07851074,674.9,674.71,0.65887175]
[1748119133393,1.07851074,674.89,674.72,0.65887175]
[1748119133588,1.07851074,674.88,674.72,0.65887175]
[1748119133892,1.07851074,674.87,674.72,0.65887175]
[1748119134086,1.07851074,674.86,674.72,0.65887175]
[1748119134391,1.07851074,674.85,674.73,0.65887175]
[1748119134592,1.07851074,674.84,674.73,0.65887175]
[1748119134795,1.0783075,674.83,674.73,0.65887175]
[1748119135092,1.0783075,674.82,674.74,0.65887175]
[1748119135295,1.0783075,674.81,674.74,0.65887175]
[1748119135494,1.0783075,674.8,674.74,0.65887175]
[1748119135693,1.0783075,674.79,674.74,0.65887175]
[1748119135894,1.0783075,674.78,674.74,0.65887175]
[1748119136097,1.0783075,674.77,674.74,0.65887175]
[1748119136296,1.0783075,674.76,674.74,0.65887175]
[1748119136496,1.0783075,674.75,674.64,0.681]
[1748119136698,1.0783075,674.74,674.64,0.681]
[1748119136895,1.0783075,674.73,674.64,0.681]
[1748119137096,1.0783075,674.72,674.64,0.681]
[1748119137297,1.0783075,674.71,674.65,0.65825364]
[1748119137494,1.0783075,674.7,674.65,0.65825364]
[1748119137693,1.0783075,674.69,674.65,0.65825364]
[1748119137897,1.0783075,674.68,674.65,0.65825364]
[1748119138094,1.0783075,674.67,674.65,0.65825364]
[1748119138297,1.0783075,674.66,674.65,0.65825364]
[1748119138496,1.07788377,674.66,674.65,0.65825364]
[1748119140401,1.0778253,674.66,674.65,0.65825364]
[1748119144202,1.07764273,674.66,674.65,0.65825364]
[1748119146004,1.07749823,674.66,674.65,0.65825364]
[1748119154513,1.07749823,674.66,674.64,0.681]
[1748119154713,1.07749823,674.65,674.64,0.681]
[1748119157414,1.07678316,674.65,674.64,0.681]
[1748119159318,1.07655565,674.65,674.64,0.681]
[1748119161019,0.29633141,674.92,674.64,0.681]
[1748119161219,1.07611663,674.91,674.64,0.681]
[1748119161416,1.37245682,674.9,674.64,0.681]
[1748119161617,1.37246121,674.89,674.64,0.681]
[1748119161922,1.37246561,674.88,674.64,0.681]
[1748119162219,1.37247,674.87,674.64,0.681]
[1748119162421,1.37247439,674.86,674.64,0.681]
[1748119162621,1.37247878,674.85,674.64,0.681]
[1748119162823,1.37248317,674.84,674.64,0.681]
[1748119163023,1.37214554,674.83,674.64,0.681]
[1748119163225,1.37214993,674.82,674.64,0.681]
[1748119163426,1.37215433,674.81,674.64,0.681]
[1748119163627,1.07577461,674.8,674.64,0.681]
[1748119163924,1.07577461,674.79,674.64,0.681]
[1748119164125,1.07577461,674.78,674.64,0.681]
[1748119164425,1.07577461,674.77,674.64,0.681]
[1748119164725,1.07577461,674.76,674.64,0.681]
[1748119164918,1.07577461,674.75,674.64,0.681]
[1748119165123,1.07577461,674.74,674.64,0.681]
[1748119165322,1.07577461,674.73,674.64,0.681]
[1748119165524,1.07577461,674.72,674.64,0.681]
[1748119165720,1.07577461,674.71,674.64,0.681]
[1748119165920,0.25790195,675.19,674.64,0.681]
[1748119165921,1.07577461,674.7,674.64,0.681]
[1748119166123,1.07577461,674.69,674.64,0.681]
[1748119166324,1.07577461,674.68,674.64,0.681]
[1748119166526,1.07577461,674.67,674.64,0.681]
[1748119166824,1.07577461,674.66,674.64,0.681]
[1748119167025,1.07577461,674.65,674.64,0.681]
[1748119173634,1.07577461,674.65,674.24,0.69551471]
[1748119173837,1.07577461,674.64,674.24,0.69551471]
[1748119174036,1.07577461,674.63,674.24,0.69551471]
[1748119174236,1.07577461,674.62,674.25,0.65683103]
[1748119174438,1.07389165,674.61,674.25,0.65683103]
[1748119174734,1.07389165,674.6,674.25,0.65683103]
[1748119174933,1.07389165,674.59,674.25,0.65683103]
[1748119175134,1.07389165,674.58,674.25,0.65683103]
[1748119175336,1.07389165,674.57,674.25,0.65683103]
[1748119175538,1.07389165,674.56,674.26,0.65683103]
[1748119175738,1.07389165,674.55,674.26,0.65683103]
[1748119175932,1.07389165,674.54,674.26,0.65683103]
[1748119176137,0.25790195,675.19,674.27,0.65683103]
[1748119176138,1.07389165,674.53,674.27,0.65683103]
[1748119176337,1.07372582,674.52,674.27,1.39583103]
[1748119176537,1.07372582,674.51,674.27,1.39583103]
[1748119176738,0.25790195,675.19,674.27,1.39583103]
[1748119176939,1.07365393,675.18,674.27,1.39583103]
[1748119177233,1.07365393,675.17,674.27,1.39583103]
[1748119177435,1.07365393,675.16,674.27,1.39583103]
[1748119177639,1.07365393,675.15,674.28,0.65683103]
[1748119177837,1.07365393,675.14,674.28,0.65683103]
[1748119178140,1.07362199,675.13,674.28,0.65683103]
[1748119178341,1.07362199,675.12,674.28,0.65683103]
[1748119178642,1.07362199,675.12,674.27,0.739]
[1748119178643,1.07362199,675.11,674.29,0.65683103]
[1748119178841,1.07362199,675.1,674.29,0.65683103]
[1748119179037,1.07362199,675.09,674.29,0.65683103]
[1748119179240,1.07362199,675.08,674.29,0.65683103]
[1748119179444,1.07362199,675.07,674.29,0.65683103]
[1748119179639,1.07362199,675.06,674.29,0.65683103]
[1748119179842,1.07362199,675.05,674.3,0.65683103]
[1748119180038,1.07347831,675.04,674.3,0.65683103]
[1748119180239,1.07347831,675.03,674.3,0.65683103]
[1748119180541,1.07347831,675.02,674.3,0.65683103]
[1748119180742,1.07347831,675.01,674.31,0.65683103]
[1748119180938,1.07347831,675.0,674.31,0.65683103]
[1748119181138,1.07347831,674.99,674.31,0.65683103]
[1748119181346,1.07347831,674.98,674.31,0.65683103]
[1748119181543,1.07347831,674.97,674.31,0.65683103]
[1748119181745,1.07347831,674.96,674.31,0.65683103]
[1748119182047,1.07339101,674.95,674.32,0.65683103]
[1748119182346,1.07339101,674.94,674.32,0.65683103]
[1748119182541,1.07339101,674.93,674.32,0.65683103]
[1748119182745,1.07339101,674.92,674.32,0.65683103]
[1748119182945,1.07339101,674.91,674.32,0.65683103]
[1748119183145,1.07339101,674.9,674.33,0.65683103]
[1748119183345,1.07339101,674.89,674.33,0.65683103]
[1748119183546,1.07339101,674.88,674.33,0.65683103]
[1748119183847,1.07339101,674.87,674.33,0.65683103]
[1748119184047,1.07339101,674.86,674.34,0.65683103]
[1748119184250,1.07339101,674.85,674.34,0.65683103]
[1748119184447,1.07339101,674.84,674.34,0.65683103]
[1748119184649,1.07339101,674.83,674.34,0.65683103]
[1748119184850,1.07339101,674.82,674.34,0.65683103]
[1748119185049,1.07339101,674.81,674.34,0.65683103]
[1748119185344,1.07339101,674.8,674.35,0.65683103]
[1748119185550,1.07339101,674.79,674.35,0.65683103]
[1748119185751,1.07308996,674.78,674.35,0.65683103]
[1748119185945,1.07308996,674.77,674.36,0.65683103]
[1748119186149,1.07308996,674.76,674.36,0.65683103]
[1748119186346,1.07308996,674.75,674.36,0.65683103]
[1748119186546,1.07308996,674.74,674.36,0.65683103]
[1748119186745,1.07308996,674.73,674.36,0.65683103]
[1748119186949,1.07308996,674.72,674.37,0.65683103]
[1748119187152,1.07308996,674.71,674.37,0.65683103]
[1748119187346,1.07308996,674.7,674.37,0.65683103]
[1748119187549,1.07308996,674.69,674.37,0.65683103]
[1748119187752,1.07300435,674.68,674.37,0.65683103]
[1748119187947,1.07300435,674.67,674.37,0.65683103]
[1748119188150,1.07300435,674.66,674.38,0.65683103]
[1748119188346,1.07300435,674.65,674.38,0.65683103]
[1748119188550,1.07300435,674.64,674.38,0.65683103]
[1748119188750,1.07300435,674.63,674.38,0.65683103]
[1748119188947,1.07300435,674.62,674.38,0.65683103]
[1748119189147,1.07300435,674.61,674.38,0.65683103]
[1748119189453,1.07300435,674.6,674.27,0.739]
[1748119189655,1.07300435,674.59,674.27,0.739]
[1748119189953,1.07300435,674.58,674.27,0.739]
[1748119190154,1.07300435,674.57,674.27,0.739]
[1748119190354,1.07300435,674.56,674.27,0.739]
[1748119190548,1.07300435,674.55,674.28,0.65642044]
[1748119190751,1.07300435,674.54,674.28,0.65642044]
[1748119190951,1.07300435,674.53,674.28,0.65642044]
[1748119191154,1.07300435,674.52,674.28,0.65642044]
[1748119191354,0.25798321,674.96,674.28,0.65642044]
[1748119191653,1.369308,674.95,674.28,0.65642044]
[1748119191853,1.36931239,674.94,674.29,0.65642044]
[1748119192054,1.36931678,674.93,674.29,0.65642044]
[1748119192255,1.36932117,674.92,674.29,0.65642044]
[1748119192457,1.36932556,674.91,674.29,0.65642044]
[1748119192651,1.36932995,674.9,674.29,0.65642044]
[1748119192955,1.36933434,674.89,674.29,0.65642044]
[1748119193152,1.36933874,674.88,674.29,0.65642044]
[1748119193351,1.36934313,674.87,674.28,0.65642044]
[1748119193555,1.07298976,674.86,674.28,0.65642044]
[1748119193755,1.07298976,674.85,674.28,0.65642044]
[1748119193956,1.07298976,674.84,674.28,0.65642044]
[1748119194156,1.07298976,674.83,674.28,0.65642044]
[1748119194359,1.07298976,674.82,674.28,0.65642044]
[1748119194657,1.07298976,674.81,674.28,0.65642044]
[1748119194857,1.07298976,674.8,674.28,0.65642044]
[1748119195055,1.07298976,674.79,674.28,0.65642044]
[1748119195254,1.07298976,674.78,674.28,0.65642044]
[1748119195455,1.36938705,674.77,674.28,0.65642044]
[1748119195653,1.07298976,674.76,674.28,0.65642044]
[1748119195853,1.07298976,674.75,674.28,0.65642044]
[1748119196154,1.07298976,674.74,674.28,0.65642044]
[1748119196354,1.07298976,674.73,674.28,0.65642044]
[1748119196559,1.07298976,674.72,674.28,0.65642044]
[1748119196753,1.07298976,674.71,674.28,0.65642044]
[1748119196956,1.07298976,674.7,674.28,0.65642044]
[1748119197268,1.07336201,674.69,674.28,0.65642044]
[1748119197557,1.07336201,674.68,674.28,0.65642044]
[1748119197753,1.07336201,674.67,674.28,0.65642044]
[1748119198053,1.07348455,674.66,674.28,0.65642044]
[1748119198258,1.07348455,674.65,674.28,0.65642044]
[1748119198461,1.07348455,674.64,674.28,0.65642044]
[1748119198755,1.07348455,674.63,674.28,0.65642044]
[1748119198962,1.07348455,674.62,674.29,0.65642044]
[1748119199160,1.07348455,674.61,674.29,0.65642044]
[1748119199361,1.07348455,674.6,674.29,0.65642044]
[1748119199660,1.07348455,674.59,674.29,0.65642044]
[1748119199860,1.07348455,674.58,674.29,0.65642044]
[1748119200056,1.07348455,674.57,674.3,0.65642044]
[1748119200255,1.07348455,674.56,674.3,0.65642044]
[1748119200458,1.07348455,674.55,674.3,0.65642044]
[1748119200655,1.07348455,674.54,674.3,0.65642044]
[1748119200954,1.07348455,674.53,674.31,0.65642044]
[1748119201156,1.07348455,674.52,674.31,0.65642044]
[1748119201360,1.07348455,674.51,674.31,0.65642044]
[1748119201559,1.07348455,674.5,674.31,0.65642044]
[1748119201756,1.07348455,674.49,674.31,0.65642044]
[1748119202054,1.07348455,674.48,674.31,0.65642044]
[1748119202259,1.07348455,674.47,674.31,0.65642044]
[1748119202456,1.07348455,674.46,674.32,0.65642044]
[1748119202657,1.07348455,674.45,674.32,0.65642044]
[1748119202857,1.07426743,674.44,674.32,0.65642044]
[1748119203060,0.29639729,674.77,674.32,0.65642044]
[1748119203258,1.07426743,674.76,674.32,0.65642044]
[1748119203457,1.07426743,674.75,674.32,0.65642044]
[1748119203663,1.07426743,674.74,674.33,0.65642044]
[1748119203860,1.07426743,674.73,674.33,0.65642044]
[1748119204060,1.07426743,674.72,674.33,0.65642044]
[1748119204261,1.07426743,674.71,674.33,0.65642044]
[1748119204460,1.07426743,674.7,674.33,0.65642044]
[1748119204660,0.29639729,674.77,674.34,0.65642044]
[1748119204963,1.07472887,674.76,674.34,0.65642044]
[1748119205166,1.07472887,674.75,674.34,0.65642044]
[1748119205361,1.07472887,674.74,674.34,0.65642044]
[1748119205568,1.07472887,674.73,674.34,0.65642044]
[1748119205767,1.07472887,674.72,674.35,0.65642044]
[1748119205961,1.07472887,674.71,674.35,0.65642044]
[1748119206160,1.07472887,674.7,674.35,0.65642044]
[1748119206363,1.07472887,674.69,674.35,0.65642044]
[1748119206561,0.29639729,674.77,674.35,0.65642044]
[1748119206768,1.07515134,674.76,674.35,0.65642044]
[1748119206967,1.07515134,674.75,674.36,0.65642044]
[1748119207163,1.07515134,674.74,674.36,0.65642044]
[1748119207364,1.07515134,674.73,674.36,0.65642044]
[1748119207569,1.07515134,674.72,674.36,0.65642044]
[1748119207772,1.07515134,674.71,674.36,0.65642044]
[1748119207969,1.07515134,674.7,674.36,0.65642044]
[1748119208170,1.07515134,674.69,674.36,0.65642044]
[1748119208371,1.07515134,674.68,674.37,0.65642044]
[1748119208565,1.07536364,674.67,674.37,0.65642044]
[1748119208768,1.07536364,674.66,674.37,0.65642044]
[1748119208968,1.07536364,674.65,674.37,0.65642044]
[1748119209168,1.07536364,674.64,674.37,0.65642044]
[1748119209468,1.07536364,674.63,674.38,0.65642044]
[1748119209669,1.07536364,674.62,674.38,0.65642044]
[1748119209869,1.07536364,674.61,674.38,0.65642044]
[1748119210071,1.07536364,674.6,674.38,0.65642044]
[1748119210272,1.07536364,674.59,674.38,0.65642044]